bitfinex/quotes_SOLUSD_20230101
["timestamp","ask_amount","ask_price","bid_price","bid_amount"]
[1672559827161,23.7572,9.8103,9.8044,307.9]
[1672559828218,23.7572,9.8103,9.8045,40.0]
[1672559829260,23.7572,9.8103,9.8044,307.9]
[1672559829905,23.7572,9.8103,9.8045,40.0]
[1672559831068,23.7572,9.8103,9.8044,307.9]
[1672559831267,23.7572,9.8103,9.8038,40.0]
[1672559831587,23.7572,9.8103,9.804,307.9]
[1672559831777,23.7572,9.8103,9.8042,307.9]
[1672559831992,23.7572,9.8103,9.8041,116.58]
[1672559831993,23.7572,9.8103,9.8044,307.9]
[1672559832963,23.7572,9.8103,9.8043,307.9]
[1672559833146,23.7572,9.8103,9.8044,40.0]
[1672559833355,23.7572,9.8103,9.8046,40.0]
[1672559833796,23.7572,9.8103,9.8045,307.9]
[1672559834340,23.7572,9.8103,9.8044,40.0]
[1672559834513,23.7572,9.8103,9.8044,76.58]
[1672559834725,23.7572,9.8103,9.803,76.59]
[1672559834936,40.0,9.8102,9.8023,307.9]
[1672559835771,40.0,9.8102,9.7932,1741.99516675]
[1672559835772,40.0,9.8102,9.8024,76.6]
[1672559835983,40.0,9.8102,9.8019,76.6]
[1672559839368,23.7572,9.8103,9.8019,76.6]
[1672559846104,40.0,9.8102,9.8019,76.6]
[1672559847872,40.0,9.8102,9.801,76.61]
[1672559848084,23.7572,9.8103,9.8011,307.9]
[1672559848298,23.7572,9.8103,9.8021,40.0]
[1672559848519,23.7572,9.8103,9.8024,40.0]
[1672559848722,23.7572,9.8103,9.8026,307.9]
[1672559849043,23.7572,9.8103,9.8029,40.0]
[1672559849239,23.7572,9.8103,9.8031,307.9]
[1672559849444,23.7572,9.8103,9.8034,40.0]
[1672559849661,23.7572,9.8103,9.8036,40.0]
[1672559850094,23.7572,9.8103,9.8033,307.9]
[1672559850311,40.0,9.8102,9.8033,307.9]
[1672559850503,40.0,9.8102,9.8034,307.9]
[1672559851141,23.7572,9.8103,9.8034,307.9]
[1672559851342,40.0,9.8102,9.8023,76.6]
[1672559851553,40.0,9.8102,9.8019,76.6]
[1672559852299,23.7572,9.8103,9.802,40.0]
[1672559852513,23.7572,9.8103,9.8021,76.6]
[1672559852706,40.0,9.8102,9.8019,76.6]
[1672559854916,40.0,9.81,9.8019,76.6]
[1672559855332,23.7572,9.8103,9.8019,76.6]
[1672559855762,40.0,9.8102,9.8019,76.6]
[1672559859885,23.7572,9.8103,9.8019,76.6]
[1672559860206,40.0,9.8102,9.8019,76.6]
[1672559860399,40.0,9.8102,9.8006,76.61]
[1672559860608,76.54,9.8101,9.801,76.61]
[1672559860814,40.0,9.81,9.801,76.61]
[1672559861027,40.0,9.8098,9.801,76.61]
[1672559863044,40.0,9.8098,9.8011,307.9]
[1672559863256,22.8933,9.8101,9.8021,40.0]
[1672559863874,22.8933,9.8101,9.802,307.9]
[1672559865227,22.8933,9.8101,9.8021,40.0]
[1672559865447,22.8933,9.8101,9.8023,307.9]
[1672559866279,22.8933,9.8101,9.802,307.9]
[1672559866497,40.0,9.81,9.8021,76.6]
[1672559867762,40.0,9.81,9.8019,76.6]
[1672559868494,40.0,9.81,9.8011,307.9]
[1672559868703,40.0,9.81,9.8013,307.9]
[1672559868918,40.0,9.81,9.8014,76.61]
[1672559869853,40.0,9.81,9.8011,307.9]
[1672559870083,40.0,9.81,9.8013,307.9]
[1672559870291,40.0,9.81,9.8014,76.61]
[1672559870701,40.0,9.81,9.8015,307.9]
[1672559871554,22.8933,9.8101,9.8016,40.0]
[1672559871759,22.8933,9.8101,9.801,76.61]
[1672559872080,40.0,9.81,9.7994,76.62]
[1672559872267,40.0,9.81,9.7981,40.0]
[1672559872268,76.54,9.8099,9.7987,76.63]
[1672559872479,40.0,9.8098,9.7988,40.0]
[1672559872687,40.0,9.8096,9.7989,76.62]
[1672559872913,76.54,9.8095,9.7989,76.62]
[1672559873105,40.0,9.8094,9.799,347.9]
[1672559873317,76.54,9.8093,9.8006,76.61]
[1672559873524,40.0,9.8092,9.8006,76.61]
[1672559873738,40.0,9.809,9.7994,40.0]
[1672559873949,40.0,9.809,9.7995,76.62]
[1672559874173,40.0,9.8088,9.7995,76.62]
[1672559874488,40.0,9.8086,9.7995,76.62]
[1672559874701,40.0,9.8084,9.7995,76.62]
[1672559875332,40.0,9.8084,9.7996,307.9]
[1672559875550,40.0,9.8084,9.7997,40.0]
[1672559878888,76.55,9.8085,9.7997,40.0]
[1672559879093,40.0,9.8084,9.7997,40.0]
[1672559879742,76.55,9.8085,9.8007,40.0]
[1672559879946,40.0,9.8088,9.8007,40.0]
[1672559880155,40.0,9.8088,9.8006,307.9]
[1672559880566,40.0,9.8088,9.8008,307.9]
[1672559882987,40.0,9.8088,9.8007,115.1586]
[1672559883317,40.0,9.8086,9.8007,115.1586]
[1672559883508,40.0,9.8084,9.8007,115.1586]
[1672559883719,40.0,9.8082,9.8007,115.1586]
[1672559887930,76.55,9.8083,9.8007,115.1586]
[1672559888142,40.0,9.8088,9.8007,115.1586]
[1672559888357,40.0,9.8086,9.8007,115.1586]
[1672559888557,40.0,9.8084,9.8007,115.1586]
[1672559888768,76.55,9.8083,9.8007,115.1586]
[1672559888995,40.0,9.8082,9.8007,115.1586]
[1672559891400,76.55,9.8083,9.8007,115.1586]
[1672559891612,40.0,9.8084,9.8007,115.1586]
[1672559891947,40.0,9.8082,9.8007,115.1586]
[1672559893819,76.55,9.8083,9.8007,115.1586]
[1672559894029,40.0,9.8086,9.8007,115.1586]
[1672559894254,40.0,9.8084,9.8007,115.1586]
[1672559894500,76.55,9.8083,9.8007,115.1586]
[1672559894780,40.0,9.8082,9.8007,115.1586]
[1672559896780,40.0,9.808,9.8007,115.1586]
[1672559897198,40.0,9.8078,9.8007,115.1586]
[1672559897416,40.0,9.8076,9.8007,115.1586]
[1672559900354,40.0,9.8078,9.8007,115.1586]
[1672559904443,40.0,9.808,9.8007,115.1586]
[1672559904765,76.55,9.8083,9.8007,115.1586]
[1672559904986,40.0,9.8082,9.8007,115.1586]
[1672559905824,40.0,9.808,9.8007,115.1586]
[1672559906453,40.0,9.8078,9.8007,115.1586]
[1672559912646,40.0,9.808,9.8007,115.1586]
[1672559915071,9.9968168,9.8112,9.8008,307.9]
[1672559915288,9.9968168,9.8112,9.802,307.9]
[1672559915608,9.9968168,9.8112,9.8023,40.0]
[1672559915822,76.53,9.8111,9.8025,347.9]
[1672559916018,9.9968168,9.8112,9.8028,40.0]
[1672559916228,9.9968168,9.8112,9.8029,307.9]
[1672559916436,9.9968168,9.8112,9.8031,307.9]
[1672559916758,9.9968168,9.8112,9.8032,40.0]
[1672559916962,9.9968168,9.8112,9.8034,40.0]
[1672559917595,76.53,9.8111,9.8034,40.0]
[1672559918027,9.9968168,9.8112,9.8026,76.6]
[1672559918343,76.53,9.8111,9.8021,100.2582]
[1672559918541,76.53,9.8111,9.8022,40.0]
[1672559921471,40.0,9.811,9.8022,40.0]
[1672559921681,76.53,9.8111,9.8022,40.0]
[1672559921913,40.0,9.81,9.8021,100.2582]
[1672559922229,40.0,9.8098,9.8021,23.6582]
[1672559922440,40.0,9.8096,9.8021,23.6582]
[1672559922651,40.0,9.8094,9.8021,23.6582]
[1672559923676,40.0,9.8092,9.8021,23.6582]
[1672559923890,40.0,9.809,9.8021,23.6582]
[1672559924101,40.0,9.8088,9.8021,23.6582]
[1672559924323,76.55,9.8087,9.8021,23.6582]
[1672559924538,40.0,9.8086,9.8021,23.6582]
[1672559924757,40.0,9.8084,9.8021,23.6582]
[1672559924959,40.0,9.8082,9.8021,23.6582]
[1672559925164,76.55,9.8081,9.8021,23.6582]
[1672559925396,40.0,9.808,9.8021,23.6582]
[1672559925595,40.0,9.8078,9.8021,23.6582]
[1672559925804,40.0,9.8076,9.8021,23.6582]
[1672559926970,76.56,9.8077,9.8021,23.6582]
[1672559927181,76.55,9.8089,9.8021,23.6582]
[1672559927385,76.55,9.8087,9.8021,23.6582]
[1672559928541,76.54,9.8093,9.8021,23.6582]
[1672559928753,439.16831484,9.8261,9.8021,23.6582]
[1672559928754,76.55,9.8091,9.8021,23.6582]
[1672559931892,76.55,9.8089,9.8021,23.6582]
[1672559932102,40.0,9.8088,9.8021,23.6582]
[1672559932328,40.0,9.8086,9.8021,23.6582]
[1672559932518,40.0,9.8084,9.8021,23.6582]
[1672559932729,76.55,9.8085,9.8021,23.6582]
[1672559932939,40.0,9.8086,9.8021,23.6582]
[1672559933168,40.0,9.8084,9.8021,23.6582]
[1672559934651,76.55,9.8085,9.8021,23.6582]
[1672559936329,40.0,9.8088,9.8021,23.6582]
[1672559936540,40.0,9.8086,9.8021,23.6582]
[1672559936740,76.55,9.8085,9.8021,23.6582]
[1672559936949,40.0,9.8084,9.8021,23.6582]
[1672559937905,40.0,9.8082,9.8021,23.6582]
[1672559938114,40.0,9.808,9.8021,23.6582]
[1672559938431,76.55,9.8079,9.8021,23.6582]
[1672559939279,76.55,9.8081,9.8021,23.6582]
[1672559939989,40.0,9.8086,9.8021,23.6582]
[1672559940194,76.55,9.8085,9.8021,23.6582]
[1672559940431,76.55,9.8091,9.8022,40.0]
[1672559940634,76.53,9.811,9.8023,24.9359]
[1672559941049,40.0,9.8099,9.8023,24.9359]
[1672559941260,76.54,9.8098,9.8023,24.9359]
[1672559941589,64.1665,9.8111,9.8023,24.9359]
[1672559941590,76.54,9.81,9.8023,24.9359]
[1672559942836,40.0,9.8099,9.8023,24.9359]
[1672559943050,76.54,9.8098,9.8023,24.9359]
[1672559943253,40.0,9.8097,9.8023,24.9359]
[1672559943578,40.0,9.8095,9.8023,24.9359]
[1672559943800,40.0,9.8093,9.8023,24.9359]
[1672559944104,40.0,9.8091,9.8023,24.9359]
[1672559944534,76.55,9.809,9.8023,24.9359]
[1672559944743,40.0,9.8089,9.8023,24.9359]
[1672559944932,40.0,9.8087,9.8023,24.9359]
[1672559945142,40.0,9.8085,9.8023,24.9359]
[1672559945558,76.55,9.8086,9.8023,24.9359]
[1672559945890,40.0,9.8093,9.8023,24.9359]
[1672559946106,40.0,9.8091,9.8023,24.9359]
[1672559946306,40.0,9.8089,9.8023,24.9359]
[1672559946504,40.0,9.8109,9.8023,24.9359]
[1672559946721,22.8933,9.8101,9.8023,24.9359]
[1672559947153,116.54,9.81,9.8023,24.9359]
[1672559947473,40.0,9.8095,9.8023,24.9359]
[1672559948207,22.8933,9.8101,9.8023,24.9359]
[1672559948393,22.8933,9.8101,9.8024,40.0]
[1672559948608,22.8933,9.8101,9.8027,40.0]
[1672559949761,22.8933,9.8101,9.8026,307.9]
[1672559949968,22.8933,9.8101,9.8029,40.0]
[1672559951879,22.8933,9.8101,9.8032,40.0]
[1672559952072,22.8933,9.8101,9.8035,40.0]
[1672559952286,22.8933,9.8101,9.8036,307.9]
[1672559952712,22.8933,9.8101,9.8037,40.0]
[1672559956486,22.8933,9.8101,9.8036,307.9]
[1672559957127,22.8933,9.8101,9.8025,307.9]
[1672559957333,22.8933,9.8101,9.8026,384.5]
[1672559957958,40.0,9.81,9.8026,384.5]
[1672559958186,40.0,9.81,9.8024,24.9159]
[1672559958390,76.54,9.8099,9.8024,24.9159]
[1672559959012,40.0,9.8098,9.8024,24.9159]
[1672559959225,40.0,9.8096,9.8024,24.9159]
[1672559959445,76.54,9.8095,9.8024,24.9159]
[1672559959656,40.0,9.8094,9.8024,24.9159]
[1672559959854,40.0,9.8092,9.8024,24.9159]
[1672559960060,76.55,9.8091,9.8024,24.9159]
[1672559960278,40.0,9.809,9.8024,24.9159]
[1672559961001,76.55,9.8091,9.8024,24.9159]
[1672559961550,40.0,9.8092,9.8024,24.9159]
[1672559961742,76.55,9.8091,9.8024,24.9159]
[1672559962071,40.0,9.809,9.8024,24.9159]
[1672559962286,76.55,9.8091,9.8024,24.9159]
[1672559962479,76.54,9.8093,9.8024,24.9159]
[1672559963017,76.54,9.8097,9.8024,24.9159]
[1672559963218,40.0,9.8107,9.8024,24.9159]
[1672559963433,76.53,9.8106,9.8024,24.9159]
[1672559963634,40.0,9.811,9.8024,24.9159]
[1672559963845,40.0,9.811,9.8025,40.0]
[1672559964051,76.52,9.812,9.8028,40.0]
[1672559964261,76.53,9.811,9.803,307.9]
[1672559964471,40.0,9.811,9.803,307.9]
[1672559964682,40.0,9.811,9.8025,76.6]
[1672559964892,40.0,9.81,9.8024,24.9159]
[1672559965961,40.0,9.8104,9.8024,24.9159]
[1672559966272,76.53,9.8105,9.8024,24.9159]
[1672559966801,40.0,9.81,9.8024,24.9159]
[1672559967205,76.53,9.811,9.8024,24.9159]
[1672559967415,76.53,9.811,9.8025,307.9]
[1672559967756,76.53,9.811,9.8026,40.0]
[1672559968061,76.53,9.811,9.8025,307.9]
[1672559968462,76.53,9.811,9.8026,347.9]
[1672559968895,76.53,9.811,9.8027,40.0]
[1672559970355,76.53,9.811,9.8024,24.9159]
[1672559971102,76.53,9.811,9.8025,40.0]
[1672559972062,76.53,9.811,9.8024,24.9159]
[1672559973306,76.53,9.811,9.8024,64.9159]
[1672559973525,76.53,9.811,9.8025,307.9]
[1672559973741,76.53,9.811,9.8026,40.0]
[1672559975001,76.52,9.812,9.8026,40.0]
[1672559975639,21.8933,9.8101,9.8026,40.0]
[1672559976036,40.0,9.81,9.8024,24.9159]
[1672559976250,116.54,9.81,9.8024,24.9159]
[1672559979716,40.0,9.8099,9.8024,24.9159]
[1672559979927,76.54,9.8098,9.8024,24.9159]
[1672559980137,40.0,9.8097,9.8024,24.9159]
[1672559980353,40.0,9.8095,9.8024,24.9159]
[1672559980564,40.0,9.8093,9.8024,24.9159]
[1672559980774,76.54,9.8092,9.8024,24.9159]
[1672559981001,40.0,9.8091,9.8024,24.9159]
[1672559981194,40.0,9.8089,9.8024,24.9159]
[1672559981403,76.55,9.8088,9.8024,24.9159]
[1672559981628,76.54,9.8092,9.8024,24.9159]
[1672559981816,40.0,9.8095,9.8024,24.9159]
[1672559982033,40.0,9.8093,9.8024,24.9159]
[1672559982252,40.0,9.8091,9.8024,24.9159]
[1672559982453,76.55,9.809,9.8024,24.9159]
[1672559983082,40.0,9.8091,9.8024,24.9159]
[1672559983291,76.53,9.8109,9.8024,24.9159]
[1672559984141,40.0,9.81,9.8024,24.9159]
[1672559984358,40.0,9.8098,9.8024,24.9159]
[1672559984569,40.0,9.8096,9.8024,24.9159]
[1672559984789,76.54,9.8095,9.8024,24.9159]
[1672559985295,40.0,9.8096,9.8024,24.9159]
[1672559985500,76.54,9.8095,9.8024,24.9159]
[1672559985922,40.0,9.8098,9.8024,24.9159]
[1672559986133,40.0,9.8096,9.8024,24.9159]
[1672559986554,40.0,9.8094,9.8024,24.9159]
[1672559986776,40.0,9.8092,9.8024,24.9159]
[1672559986980,76.55,9.8091,9.8024,24.9159]
[1672559987193,40.0,9.809,9.8024,24.9159]
[1672559988126,76.55,9.8091,9.8024,24.9159]
[1672559988349,76.54,9.8099,9.8024,24.9159]
[1672559988564,116.54,9.81,9.8024,24.9159]
[1672559989397,76.54,9.81,9.8024,24.9159]
[1672559990036,40.0,9.8099,9.8024,24.9159]
[1672559991606,76.54,9.81,9.8024,24.9159]
[1672559991812,40.0,9.8099,9.8024,24.9159]
[1672559992226,76.54,9.81,9.8024,24.9159]
[1672559992438,40.0,9.8099,9.8024,24.9159]
[1672559992856,40.0,9.8097,9.8024,24.9159]
[1672559994034,76.54,9.8098,9.8024,24.9159]
[1672559994653,40.0,9.8099,9.8024,24.9159]
[1672559994875,76.54,9.8098,9.8024,24.9159]
[1672559995091,40.0,9.8097,9.8024,24.9159]
[1672559995414,76.54,9.81,9.8024,24.9159]
[1672559996469,40.0,9.8099,9.8024,24.9159]
[1672559996679,76.54,9.8098,9.8024,24.9159]
[1672559996992,40.0,9.8097,9.8024,24.9159]
[1672559997200,76.54,9.8096,9.8024,24.9159]
[1672559997509,40.0,9.8095,9.8024,24.9159]
[1672559997725,40.0,9.8093,9.8024,24.9159]
[1672559997928,40.0,9.8091,9.8024,24.9159]
[1672559998128,76.55,9.809,9.8024,24.9159]
[1672559998562,40.0,9.8093,9.8024,24.9159]
[1672559998771,76.54,9.8092,9.8024,24.9159]
[1672559999296,76.54,9.8096,9.8024,24.9159]
[1672559999512,40.0,9.8095,9.8024,24.9159]
[1672559999705,40.0,9.8093,9.8024,24.9159]
[1672559999916,76.54,9.8092,9.8024,24.9159]
[1672560000339,40.0,9.8097,9.8024,24.9159]
[1672560000340,40.0,9.8095,9.8024,24.9159]
[1672560000555,76.54,9.8094,9.8024,24.9159]
[1672560000767,40.0,9.8093,9.8024,24.9159]
[1672560000976,40.0,9.8091,9.8024,24.9159]
[1672560001170,40.0,9.8089,9.8024,24.9159]
[1672560001378,76.55,9.8088,9.8024,24.9159]
[1672560001812,40.0,9.8087,9.8024,24.9159]
[1672560002032,76.55,9.8086,9.8024,24.9159]
[1672560002221,76.54,9.8092,9.8024,24.9159]
[1672560002434,40.0,9.8099,9.8024,24.9159]
[1672560002643,40.0,9.8097,9.8024,24.9159]
[1672560002967,40.0,9.8095,9.8024,24.9159]
[1672560003172,40.0,9.8093,9.8024,24.9159]
[1672560003387,76.54,9.8092,9.8024,24.9159]
[1672560003587,40.0,9.8091,9.8024,24.9159]
[1672560003820,40.0,9.8089,9.8024,24.9159]
[1672560005808,40.0,9.8087,9.8024,24.9159]
[1672560006017,76.55,9.8086,9.8024,24.9159]
[1672560006228,40.0,9.8085,9.8024,24.9159]
[1672560006437,40.0,9.8083,9.8024,24.9159]
[1672560006648,76.55,9.8082,9.8024,24.9159]
[1672560006844,76.55,9.8084,9.8024,24.9159]
[1672560007267,76.54,9.81,9.8024,24.9159]
[1672560010320,40.0,9.8099,9.8024,24.9159]
[1672560010636,40.0,9.8097,9.8024,24.9159]
[1672560010849,76.54,9.8096,9.8024,24.9159]
[1672560011057,40.0,9.8095,9.8024,24.9159]
[1672560011265,76.54,9.8094,9.8024,24.9159]
[1672560011596,40.0,9.8093,9.8024,24.9159]
[1672560011792,76.54,9.8092,9.8024,24.9159]
[1672560012211,76.54,9.8094,9.8024,24.9159]
[1672560012434,40.0,9.8093,9.8024,24.9159]
[1672560012635,40.0,9.8091,9.8024,24.9159]
[1672560012843,76.55,9.809,9.8024,24.9159]
[1672560013053,40.0,9.8089,9.8024,24.9159]
[1672560013264,40.0,9.8087,9.8024,24.9159]
[1672560013477,76.55,9.8086,9.8024,24.9159]
[1672560013696,40.0,9.8085,9.8024,24.9159]
[1672560013903,40.0,9.8083,9.8024,24.9159]
[1672560014215,40.0,9.8081,9.8024,24.9159]
[1672560014419,76.55,9.808,9.8024,24.9159]
[1672560014631,40.0,9.8079,9.8024,24.9159]
[1672560014959,40.0,9.8077,9.8024,24.9159]
[1672560015153,76.56,9.8076,9.8024,24.9159]
[1672560015903,76.56,9.8076,9.7909,173.16583965]
[1672560015904,20.0,9.8075,9.7909,173.16583965]
[1672560016097,24.9159,9.8016,9.7909,173.16583965]
[1672560016433,40.0,9.8065,9.7904,177.43802929]
[1672560016434,40.0,9.8014,9.7904,177.43802929]
[1672560016631,40.0,9.8012,9.791,160.2037]
[1672560016843,76.61,9.8011,9.7911,111.0928]
[1672560017041,40.0,9.801,9.7911,111.0928]
[1672560017252,76.61,9.8009,9.7911,111.0928]
[1672560017471,40.0,9.8008,9.7912,160.2037]
[1672560017678,76.61,9.8007,9.7912,160.2037]
[1672560017887,40.0,9.8006,9.7912,160.2037]
[1672560018100,40.0,9.8004,9.7913,135.3416]
[1672560018335,76.61,9.8003,9.7848,307.9]
[1672560018633,76.61,9.8003,9.7786,152.08535945]
[1672560018634,40.0,9.8002,9.7823,347.9]
[1672560018844,96.62,9.8001,9.7825,307.9]
[1672560019054,40.0,9.8,9.7827,347.9]
[1672560019248,96.62,9.7999,9.783,40.0]
[1672560019457,96.62,9.7999,9.7832,307.9]
[1672560019458,40.0,9.7998,9.7832,307.9]
[1672560019683,40.0,9.7996,9.7834,307.9]
[1672560019889,40.0,9.7994,9.7836,307.9]
[1672560020089,96.62,9.7993,9.7838,307.9]
[1672560020304,96.62,9.7993,9.784,307.9]
[1672560020305,40.0,9.7992,9.784,307.9]
[1672560020621,40.0,9.799,9.7841,76.74]
[1672560020831,96.62,9.7989,9.7842,307.9]
[1672560021043,40.0,9.7988,9.7844,307.9]
[1672560021250,40.0,9.7986,9.7846,307.9]
[1672560021461,96.63,9.7985,9.7847,76.74]
[1672560021689,40.0,9.7984,9.7848,307.9]
[1672560021876,40.0,9.7982,9.785,307.9]
[1672560022089,96.63,9.7981,9.7852,307.9]
[1672560022428,40.0,9.798,9.7852,307.9]
[1672560022627,40.0,9.7978,9.7854,307.9]
[1672560022838,40.0,9.7976,9.7856,307.9]
[1672560023160,40.0,9.7974,9.7858,307.9]
[1672560023350,96.64,9.7973,9.7859,76.73]
[1672560023563,40.0,9.7972,9.7859,76.73]
[1672560023775,40.0,9.797,9.7859,76.73]
[1672560024090,40.0,9.7968,9.786,307.9]
[1672560024314,40.0,9.7966,9.7862,307.9]
[1672560024526,40.0,9.7964,9.7863,76.72]
[1672560024733,40.0,9.7962,9.7863,76.72]
[1672560024948,96.65,9.7961,9.7863,76.72]
[1672560025149,40.0,9.796,9.7863,76.72]
[1672560025362,40.0,9.7958,9.7863,76.72]
[1672560025678,40.0,9.7958,9.7831,40.0]
[1672560025679,20.0,9.7957,9.7831,40.0]
[1672560025991,20.0,9.7957,9.7834,40.0]
[1672560026191,20.0,9.7957,9.7836,307.9]
[1672560026404,40.0,9.7956,9.7839,40.0]
[1672560026618,20.0,9.7955,9.7841,307.9]
[1672560026828,20.0,9.7955,9.7844,40.0]
[1672560027050,20.0,9.7955,9.7847,40.0]
[1672560027240,20.0,9.7955,9.7849,307.9]
[1672560027450,20.0,9.7955,9.7851,307.9]
[1672560027667,20.0,9.7955,9.7854,40.0]
[1672560027892,20.0,9.7955,9.7856,307.9]
[1672560028200,20.0,9.7955,9.7859,40.0]
[1672560028414,20.0,9.7959,9.7862,40.0]
[1672560028603,20.0,9.7959,9.7864,307.9]
[1672560028812,20.0,9.7959,9.7867,40.0]
[1672560029026,20.0,9.7959,9.7869,40.0]
[1672560029464,20.0,9.7959,9.7868,307.9]
[1672560029973,40.0,9.7958,9.7861,307.9]
[1672560030178,40.0,9.7956,9.7862,76.72]
[1672560030384,20.0,9.7955,9.7862,76.72]
[1672560030604,116.65,9.7954,9.7839,76.74]
[1672560030813,40.0,9.7952,9.7839,76.74]
[1672560031036,96.65,9.7951,9.7839,76.74]
[1672560031231,40.0,9.795,9.7816,307.9]
[1672560031446,40.0,9.7948,9.7818,307.9]
[1672560031658,96.66,9.7947,9.782,307.9]
[1672560031866,40.0,9.7946,9.7822,307.9]
[1672560032086,40.0,9.7944,9.7825,40.0]
[1672560032301,96.66,9.7943,9.7827,307.9]
[1672560032519,40.0,9.7942,9.7828,384.65]
[1672560032732,96.66,9.7941,9.7828,384.65]
[1672560032947,40.0,9.794,9.7828,384.65]
[1672560033143,40.0,9.7938,9.7829,40.0]
[1672560033462,20.0,9.7937,9.7831,307.9]
[1672560033675,20.0,9.7937,9.7832,76.75]
[1672560034206,20.0,9.7937,9.7833,307.9]
[1672560034417,40.0,9.7936,9.7834,76.75]
[1672560034737,40.0,9.7934,9.7834,76.75]
[1672560034926,40.0,9.7932,9.7834,76.75]
[1672560035351,40.0,9.793,9.7834,76.75]
[1672560035575,40.0,9.793,9.7826,40.0]
[1672560035766,40.0,9.793,9.7828,307.9]
[1672560035979,40.0,9.793,9.783,307.9]
[1672560036186,40.0,9.793,9.7832,307.9]
[1672560036398,40.0,9.793,9.7833,76.75]
[1672560036609,40.0,9.793,9.7834,40.0]
[1672560036821,40.0,9.793,9.7835,76.75]
[1672560037881,40.0,9.7932,9.7835,76.75]
[1672560038093,40.0,9.7932,9.783,76.75]
[1672560038404,40.0,9.793,9.783,188.4387]
[1672560038623,40.0,9.793,9.783,264.71649385]
[1672560038827,40.0,9.793,9.7831,40.0]
[1672560039147,40.0,9.793,9.7833,40.0]
[1672560039343,40.0,9.793,9.7834,76.75]
[1672560039555,40.0,9.793,9.7832,76.75]
[1672560039992,40.0,9.793,9.7833,40.0]
[1672560040179,40.0,9.793,9.7835,40.0]
[1672560040511,40.0,9.793,9.7837,40.0]
[1672560040714,20.0,9.7931,9.7838,76.74]
[1672560040920,20.0,9.7933,9.7834,76.75]
[1672560041139,20.0,9.7933,9.7835,40.0]
[1672560041339,20.0,9.7933,9.7836,76.74]
[1672560042387,20.0,9.7933,9.7833,76.75]
[1672560043025,20.0,9.7933,9.7834,40.0]
[1672560043227,20.0,9.7935,9.7836,40.0]
[1672560043438,20.0,9.7935,9.7837,76.74]
[1672560043853,20.0,9.7935,9.7839,40.0]
[1672560044079,20.0,9.7935,9.7841,40.0]
[1672560044285,20.0,9.7935,9.7842,76.74]
[1672560044806,20.0,9.7935,9.7839,424.64]
[1672560045745,20.0,9.7935,9.774,23.4424]
[1672560045746,116.67,9.7934,9.7743,76.04267973]
[1672560045975,116.67,9.7934,9.773,170.07036498]
[1672560045976,20.0,9.7933,9.773,170.07036498]
[1672560046195,76.67,9.7932,9.7731,40.0]
[1672560046379,40.0,9.793,9.7732,76.83]
[1672560046705,40.0,9.7928,9.7733,347.9]
[1672560046915,40.0,9.7926,9.7736,40.0]
[1672560047127,96.67,9.7925,9.7738,307.9]
[1672560047323,96.67,9.7925,9.7741,40.0]
[1672560047324,40.0,9.7924,9.7741,40.0]
[1672560047534,40.0,9.7924,9.7743,307.9]
[1672560047535,96.68,9.7923,9.7743,307.9]
[1672560047741,40.0,9.7922,9.7745,307.9]
[1672560047957,40.0,9.7922,9.7736,40.0]
[1672560047958,40.0,9.792,9.7748,40.0]
[1672560048169,96.68,9.7919,9.775,307.9]
[1672560048387,40.0,9.7918,9.7752,307.9]
[1672560048695,40.0,9.7916,9.7755,40.0]
[1672560048911,40.0,9.7914,9.7758,40.0]
[1672560049231,40.0,9.7912,9.7761,40.0]
[1672560049548,40.0,9.791,9.7764,40.0]
[1672560049762,40.0,9.7908,9.7767,40.0]
[1672560049983,40.0,9.7906,9.777,40.0]
[1672560050174,96.69,9.7905,9.7771,76.8]
[1672560050377,40.0,9.7904,9.7773,40.0]
[1672560050593,40.0,9.7902,9.7774,76.79]